bitfinex/quotes_ETHUSD_20250810
["timestamp","ask_amount","ask_price","bid_price","bid_amount"]
[1754809625418,6.5889686,4233.4,4232.8,0.001]
[1754809625419,2.91222332,4233.3,4232.8,0.001]
[1754809625615,2.48084654,4232.9,4232.8,0.001]
[1754809625810,4.97875208,4232.9,4232.8,0.21912836]
[1754809626042,5.90595208,4232.9,4232.8,0.21912836]
[1754809626239,5.8764215,4232.9,4232.8,0.21912836]
[1754809631330,5.4165215,4232.9,4232.8,0.21912836]
[1754809631571,4.9492215,4232.9,4232.8,0.21912836]
[1754809631759,5.90595208,4232.9,4232.8,0.21912836]
[1754809631938,5.8764215,4232.9,4232.8,0.21912836]
[1754809633674,4.9492215,4232.9,4232.8,0.21912836]
[1754809633837,6.45595208,4232.9,4232.8,1e-08]
[1754809634036,6.4264215,4232.9,4232.8,1e-08]
[1754809634575,9.4264215,4232.9,4232.8,1e-08]
[1754809634867,9.42934408,4232.9,4232.8,1e-08]
[1754809635076,2.36266981,4232.5,4232.4,0.001]
[1754809635237,8.08412994,4232.5,4232.4,0.001]
[1754809635569,8.98179657,4232.5,4232.4,0.001]
[1754809635776,9.53179657,4232.5,4232.4,0.001]
[1754809638171,8.60459657,4232.5,4232.4,0.001]
[1754809639277,9.06629657,4232.5,4232.4,0.001]
[1754809639482,9.50989657,4232.5,4232.4,0.001]
[1754809643353,9.50989657,4232.5,4232.4,1e-08]
[1754809644061,10.01933708,4232.5,4232.4,1e-08]
[1754809644279,10.11396008,4232.5,4232.4,1e-08]
[1754809644784,10.11377911,4232.5,4232.4,1e-08]
[1754809644987,8.70232335,4232.5,4232.4,1e-08]
[1754809645282,8.69921957,4232.5,4232.4,1e-08]
[1754809645853,8.69921957,4232.5,4232.4,0.21915805]
[1754809646587,9.60451957,4232.5,4232.4,1e-08]
[1754809647085,9.60762335,4232.5,4232.4,1e-08]
[1754809647284,2.36289312,4232.1,4232.0,0.001]
[1754809647506,8.43940061,4232.1,4232.0,0.001]
[1754809647785,9.31516445,4232.1,4232.0,0.001]
[1754809648095,9.41289123,4232.1,4232.0,0.001]
[1754809649086,9.96289123,4232.1,4232.0,0.001]
[1754809650192,5.91333987,4231.3,4231.2,0.001]
[1754809650486,7.71433987,4231.3,4231.2,0.001]
[1754809650696,8.73803987,4231.3,4231.2,0.001]
[1754809651292,8.74106211,4231.3,4231.2,0.001]
[1754809651690,2.9135633,4230.9,4230.8,0.001]
[1754809651865,2.9135633,4230.9,4230.7,0.001]
[1754809651866,5.91361917,4230.8,4230.7,0.001]
[1754809652070,6.93731917,4230.8,4230.7,0.001]
[1754809653198,0.55,4230.5,4230.4,1e-08]
[1754809653378,5.61147161,4230.5,4230.4,1e-08]
[1754809653578,5.58192428,4230.5,4230.4,1e-08]
[1754809654196,3.78092428,4230.5,4230.4,0.42840001]
[1754809654377,4.28318678,4230.5,4230.4,0.88600001]
[1754809655900,1.9194,4230.5,4230.4,0.88600001]
[1754809656102,4.28318678,4230.5,4230.4,0.88600001]
[1754809656602,1.9194,4230.5,4230.4,0.88600001]
[1754809656966,4.28318678,4230.5,4230.4,0.88600001]
[1754809658495,4.28318678,4230.5,4230.4,1.10448743]
[1754809659011,1.9194,4230.5,4230.4,1.10448743]
[1754809659815,1.9194,4230.5,4230.4,1.10455286]
[1754809661215,4.28318678,4230.5,4230.4,1.10455286]
[1754809661411,1.9194,4230.5,4230.4,1.10455286]
[1754809666019,4.28318678,4230.5,4230.4,0.64695286]
[1754809667618,1.9194,4230.5,4230.4,0.64695286]
[1754809668612,4.28318678,4230.5,4230.4,0.64695286]
[1754809668819,1.9194,4230.5,4230.4,0.64695286]
[1754809670413,0.1184,4230.5,4230.4,0.64695286]
[1754809670622,1.9194,4230.5,4230.4,1.11665286]
[1754809670999,1.9194,4230.5,4230.4,1.46480622]
[1754809672408,1.9194,4230.5,4230.4,3.82864888]
[1754809672614,1.9194,4230.5,4230.4,1.46480622]
[1754809673924,1.801,4230.5,4230.4,1.46480622]
[1754809674301,1.801,4230.5,4230.4,3.82864888]
[1754809674712,0.709603,4232.5,4230.5,0.54194939]
[1754809674896,0.1204,4231.8,4231.2,2.48177847]
[1754809675093,0.1204,4231.8,4231.5,2.36317311]
[1754809675419,0.1204,4231.8,4231.7,2.36311647]
[1754809675595,0.1204,4231.8,4231.7,2.92982268]
[1754809675795,0.1204,4231.8,4231.7,6.29262268]
[1754809676111,0.002,4231.8,4231.7,6.29262268]
[1754809676311,0.002,4231.8,4231.7,6.29288803]
[1754809677326,0.002,4231.8,4231.7,6.29254278]
[1754809678526,0.002,4231.8,4231.7,6.21234278]
[1754809678716,0.002,4231.8,4231.7,6.29254278]
[1754809679113,0.002,4231.8,4231.7,6.21234278]
[1754809680292,0.002,4231.8,4231.7,6.21207064]
[1754809682435,0.002,4231.8,4231.7,6.33047064]
[1754809682729,0.002,4231.8,4231.7,6.21191807]
[1754809682932,0.002,4231.8,4231.7,6.44871807]
[1754809683330,0.002,4231.8,4231.7,8.24871807]
[1754809683529,0.002,4231.8,4231.7,8.32891807]
[1754809685936,0.002,4231.8,4231.7,8.24871807]
[1754809687130,1e-08,4232.2,4232.1,2.36289312]
[1754809687332,1e-08,4232.2,4232.1,12.59375516]
[1754809687717,1e-08,4232.2,4232.1,12.95655516]
[1754809688112,1e-08,4232.2,4232.1,12.95619137]
[1754809688314,1e-08,4232.2,4232.1,16.50619137]
[1754809688510,1e-08,4232.2,4232.1,16.85434473]
[1754809689648,1e-08,4232.2,4232.1,14.14154473]
[1754809689950,1e-08,4232.2,4232.1,15.94154473]
[1754809690245,1e-08,4232.2,4232.1,16.22414473]
[1754809690443,1e-08,4232.2,4232.1,16.30434473]
[1754809690823,1e-08,4232.2,4232.1,16.85434473]
[1754809691028,0.002,4232.6,4232.5,2.36266981]
[1754809691222,0.002,4232.6,4232.5,16.13511745]
[1754809691528,0.002,4232.6,4232.5,16.41791745]
[1754809692356,0.002,4232.6,4232.5,16.51247145]
[1754809693247,0.04,4232.9,4232.7,0.55]
[1754809693551,1e-08,4232.9,4232.8,7.38018681]
[1754809693718,1e-08,4232.9,4232.8,7.72834017]
[1754809693918,1e-08,4232.9,4232.8,8.09134017]
[1754809695009,1e-08,4233.1,4233.0,2.36239073]
[1754809695232,0.04,4233.9,4233.2,5.91227912]
[1754809695546,0.04,4233.9,4233.2,7.92896357]
[1754809695714,0.04,4233.9,4233.2,8.75371296]
[1754809695915,0.04,4233.9,4233.2,21.25931596]
[1754809696219,0.04,4233.9,4233.6,2.36205593]
[1754809696419,0.04,4233.9,4233.6,15.59155418]
[1754809696624,0.04,4233.9,4233.6,16.42435418]
[1754809696625,1e-08,4233.7,4233.6,16.42435418]
[1754809696824,1e-08,4233.7,4233.6,16.55482309]
[1754809697150,1e-08,4234.1,4234.0,5.91183278]
[1754809697350,1e-08,4234.1,4234.0,16.25905377]
[1754809697745,1e-08,4234.1,4234.0,16.54185377]
[1754809698422,0.002,4234.5,4234.2,0.55]
[1754809698617,0.002,4234.5,4234.4,5.91160967]
[1754809698821,0.002,4234.5,4234.4,14.34143066]
[1754809701056,0.002,4234.5,4234.4,15.05020366]
[1754809701256,0.002,4234.5,4234.4,0.92578019]
[1754809701257,0.4619,4234.5,4234.4,0.92578019]
[1754809701558,0.9206,4235.1,4234.8,2.3613866]
[1754809701757,0.9206,4235.1,4234.8,14.02734625]
[1754809702059,0.1184,4235.3,4234.8,14.02734625]
[1754809702225,0.9226,4235.4,4234.8,14.02734625]
[1754809702427,0.9226,4235.4,4234.8,14.14574625]
[1754809702729,0.4619,4235.2,4234.8,14.14540157]
[1754809703965,0.4607,4235.4,4234.8,5.93258777]
[1754809704164,0.9226,4235.4,4234.8,15.94440157]
[1754809704330,0.4607,4235.4,4234.8,15.94440157]
[1754809704531,0.002,4235.4,4234.8,15.94440157]
[1754809704733,0.9626,4234.9,4234.8,3.57120117]
[1754809704929,0.9626,4234.9,4234.8,3.21666251]
[1754809707640,0.042,4234.9,4234.8,5.57804911]
[1754809707838,0.9626,4234.9,4234.8,5.57804911]
[1754809708867,0.9626,4234.9,4234.8,3.21666251]
[1754809709737,0.9626,4234.9,4234.8,5.57804911]
[1754809709932,0.9626,4234.9,4234.8,3.21666251]
[1754809713972,3.32393084,4234.9,4234.8,0.21666251]
[1754809714139,3.90427585,4234.9,4234.8,0.21666251]
[1754809720283,2.36174135,4234.2,4233.7,3.0]
[1754809720587,0.9206,4234.1,4233.8,0.21817359]
[1754809720891,2.3620388,4233.7,4232.9,2.48084311]
[1754809721052,2.48052557,4233.5,4233.2,0.21824921]
[1754809721252,3.40116752,4233.4,4233.3,0.21824921]
[1754809727967,2.36222332,4233.3,4233.2,0.001]
[1754809728173,3.26442332,4233.3,4233.2,0.21898161]
[1754809729098,3.26442332,4233.3,4233.2,0.21892061]
[1754809729565,5.36193908,4233.3,4233.2,0.21892061]
[1754809732198,5.36193908,4233.3,4233.2,0.21883278]
[1754809732663,5.36193908,4233.3,4233.2,0.21883994]
[1754809741396,3.56193908,4233.3,4233.2,0.21883994]
[1754809741601,4.16122332,4233.3,4233.2,0.21883994]
[1754809741766,5.06342332,4233.3,4233.2,0.21883994]
[1754809745909,5.09295111,4233.3,4233.2,0.21883994]
[1754809746082,5.06342332,4233.3,4233.2,0.21883994]
[1754809746265,5.8178224,4233.3,4233.2,0.21883994]
[1754809746580,5.3736224,4233.3,4233.2,0.21883994]
[1754809746780,5.8178224,4233.3,4233.2,0.21883994]
[1754809752215,5.8178224,4233.3,4232.7,0.001]
[1754809752216,2.36227912,4233.2,4232.7,0.001]
[1754809752513,3.8440076,4233.2,4233.1,1e-08]
[1754809752740,5.55309198,4233.2,4233.1,1e-08]
[1754809752918,5.5235635,4233.2,4233.1,1e-08]
[1754809753475,8.5235635,4233.2,4233.1,1e-08]
[1754809754396,5.91250236,4232.8,4232.7,1e-08]
[1754809754720,17.17020934,4232.8,4232.7,1e-08]
[1754809755018,18.07573459,4232.8,4232.7,1e-08]
[1754809758113,9.86292079,4232.8,4232.7,1e-08]
[1754809758980,9.41872079,4232.8,4232.7,1e-08]
[1754809759315,8.96072079,4232.8,4232.7,1e-08]
[1754809759482,9.89689554,4232.8,4232.7,1e-08]
[1754809759886,8.95739554,4232.8,4232.7,1e-08]
[1754809760314,5.95739554,4232.8,4232.7,1e-08]
[1754809763801,6.89689554,4232.8,4232.7,1e-08]
[1754809766437,6.89689554,4232.8,4232.7,0.21878165]
[1754809769339,3.55,4232.7,4232.3,0.001]
[1754809769634,2.91272564,4232.4,4232.3,0.001]
[1754809769835,4.85965971,4232.4,4232.3,0.001]
[1754809770131,5.79915971,4232.4,4232.3,0.001]
[1754809770340,5.76962564,4232.4,4232.3,0.001]
[1754809770543,7.00497605,4232.4,4232.3,0.001]
[1754809773939,6.06547605,4232.4,4232.3,0.001]
[1754809775048,7.00497605,4232.4,4232.3,0.001]
[1754809777110,6.06547605,4232.4,4232.3,0.001]
[1754809777943,5.51547605,4232.4,4232.3,0.001]
[1754809778125,2.48112564,4232.4,4232.3,0.001]
[1754809778333,4.28012564,4232.4,4232.3,0.001]
[1754809781251,4.28012564,4232.4,4232.3,0.22000287]
[1754809781438,2.48112564,4232.4,4232.3,0.22000287]
[1754809781641,4.28012564,4232.4,4232.3,0.22000287]
[1754809785453,5.88390102,4232.4,4232.3,0.22000287]
[1754809785617,6.43390102,4232.4,4232.3,0.22000287]
[1754809786714,6.43390102,4232.4,4232.3,0.22034812]
[1754809789743,6.43390102,4232.4,4232.3,0.22032757]
[1754809790153,3.14540102,4232.4,4232.3,0.22032757]
[1754809790357,4.28012564,4232.4,4232.3,0.22032757]
[1754809791352,5.23042564,4232.4,4232.3,0.22032757]
[1754809791758,4.77482564,4232.4,4232.3,0.22032757]
[1754809792458,4.28012564,4232.4,4232.3,0.22032757]
[1754809794361,5.23042564,4232.4,4232.3,0.22032757]
[1754809794550,6.00475494,4232.4,4232.3,0.22032757]
[1754809795962,5.54915494,4232.4,4232.3,0.22032757]
[1754809796954,6.00475494,4232.4,4232.3,0.22032757]
[1754809797269,6.55475494,4232.4,4232.3,0.22032757]
[1754809798360,2.91294896,4232.0,4231.9,0.001]
[1754809798545,4.85988582,4232.0,4231.9,0.001]
[1754809798754,5.81018582,4232.0,4231.9,0.001]
[1754809798961,5.78064896,4232.0,4231.9,0.001]
[1754809799156,8.78064896,4232.0,4231.9,0.001]
[1754809799358,10.80545675,4232.0,4231.9,0.001]
[1754809802589,6.85515675,4232.0,4231.9,0.001]
[1754809802749,4.83034896,4232.0,4231.9,0.001]
[1754809803148,4.92496796,4232.0,4231.9,0.001]
[1754809803898,5.90480482,4232.0,4231.9,0.001]
[1754809804065,5.87526796,4232.0,4231.9,0.001]
[1754809805355,5.99285687,4232.0,4231.9,0.001]
[1754809805557,7.12843024,4232.0,4231.9,0.001]
[1754809810319,7.12843024,4232.0,4231.9,0.2201065]
[1754809810697,6.67283024,4232.0,4231.9,0.2201065]
[1754809810902,6.17813024,4232.0,4231.9,0.2201065]
[1754809811829,2.57596796,4232.0,4231.9,0.2201065]
[1754809812111,4.28034896,4232.0,4231.9,0.2201065]
[1754809812615,1.9174,4232.0,4231.9,0.2201065]
[1754809812922,0.1184,4232.0,4231.9,0.5832065]
[1754809813219,1.9174,4232.0,4231.9,0.5832065]
[1754809814292,1.9174,4232.0,4231.9,0.5029065]
[1754809817994,0.1184,4232.0,4231.9,0.5029065]
[1754809818197,1.9174,4232.0,4231.9,0.5029065]
[1754809818578,1.9174,4232.0,4231.9,0.2201065]
[1754809820407,0.1184,4232.0,4231.9,0.5029065]
[1754809820605,1.9164,4232.0,4231.9,1.02991462]
[1754809821619,1.9164,4232.0,4231.9,3.39291941]
[1754809821984,1.9164,4232.0,4231.9,3.47321941]
[1754809823483,0.002,4232.3,4232.2,2.36283729]
[1754809823733,1.8,4232.3,4232.2,10.79475759]
[1754809823909,1.9184,4232.3,4232.2,11.15785222]
[1754809824113,1.9184,4232.3,4232.2,11.44065222]
[1754809826722,0.002,4232.3,4232.2,11.44065222]
[1754809826903,0.002,4232.3,4232.2,11.52095222]
[1754809829526,0.002,4232.3,4232.2,11.44065222]
[1754809835031,0.002,4232.3,4232.2,11.15785222]
[1754809836433,0.002,4232.3,4232.2,14.15785222]
[1754809837833,0.002,4232.3,4232.2,14.63935222]
[1754809838302,0.002,4232.3,4232.2,14.55905222]
[1754809838909,0.002,4232.3,4232.2,14.27625222]
[1754809842242,0.002,4232.3,4232.2,5.94503842]
[1754809842443,0.9259,4232.3,4232.2,0.2191065]
[1754809842831,3.28868146,4232.3,4232.2,0.2191065]
[1754809843654,0.9259,4232.3,4232.2,0.2191065]
[1754809844759,0.4935,4232.3,4232.2,0.2191065]
[1754809844925,2.7229,4232.3,4232.2,0.2191065]
[1754809845132,0.9259,4232.3,4232.2,0.2191065]
[1754809845329,0.002,4232.3,4232.2,0.2191065]
[1754809845927,0.9259,4232.3,4232.2,0.2191065]
[1754809846963,3.28868146,4232.3,4232.2,0.2191065]
[1754809847146,4.04535837,4232.3,4232.2,0.2191065]
[1754809847863,1.68257691,4232.3,4232.2,0.2191065]
[1754809848368,0.9259,4232.3,4232.2,0.2191065]
[1754809851440,1.799,4232.3,4232.2,2.58194379]
[1754809851867,0.002,4232.3,4232.2,2.58194379]
[1754809852082,0.002,4232.3,4232.2,5.58194379]
[1754809852280,0.002,4232.3,4232.2,5.86474379]
[1754809852654,0.002,4232.3,4232.2,5.58194379]
[1754809853162,0.1184,4232.5,4232.2,5.58194379]
[1754809853163,0.002,4232.8,4232.7,2.36255817]
[1754809853358,0.002,4232.8,4232.7,5.58166467]
[1754809855460,0.9107,4232.8,4232.7,5.58166467]
[1754809856976,0.9107,4232.8,4232.7,3.2191065]
[1754809857900,0.9107,4232.8,4232.7,5.58166467]
[1754809858568,0.9107,4232.8,4232.7,3.2191065]
[1754809858773,0.9107,4232.8,4232.7,5.58166467]
[1754809859783,0.9107,4232.8,4232.7,5.58152835]
[1754809859962,0.9107,4232.8,4232.7,3.21897018]
[1754809860166,0.9107,4232.8,4232.7,0.21897018]
[1754809860351,1.19331,4232.8,4232.7,0.21897018]
[1754809860869,0.9107,4232.8,4232.7,0.21897018]
[1754809861256,0.9107,4232.8,4232.7,0.21900007]
[1754809863485,0.9107,4232.8,4232.7,0.21903512]
[1754809863858,0.9107,4232.8,4232.7,0.21904344]
[1754809866178,3.27320236,4232.8,4232.7,0.21904344]
[1754809866388,4.02830375,4232.8,4232.7,0.21904344]
[1754809866560,4.05783502,4232.8,4232.7,0.21904344]
[1754809866761,4.02830375,4232.8,4232.7,0.21904344]
[1754809870360,4.57830375,4232.8,4232.7,0.21904344]
[1754809870904,15.79111755,4232.8,4232.7,0.21904344]
[1754809871191,16.01016055,4232.8,4232.7,0.21904344]
[1754809872180,16.01308313,4232.8,4232.7,0.21904344]
[1754809872684,2.91294896,4232.0,4231.9,0.001]
[1754809872914,5.38546828,4232.0,4231.9,0.001]
[1754809873089,5.35593142,4232.0,4231.9,0.001]
[1754809873284,6.26463142,4232.0,4231.9,0.001]
[1754809873585,9.26463142,4232.0,4231.9,0.001]
[1754809875295,5.91300479,4231.9,4231.8,0.001]
[1754809875471,9.25714547,4231.9,4231.8,0.001]
[1754809879808,17.46995927,4231.9,4231.8,1e-08]
[1754809881916,17.64920558,4231.9,4231.8,1e-08]
[1754809883027,17.64920558,4231.9,4231.4,1e-08]
[1754809883028,2.91322816,4231.5,4231.4,1e-08]
[1754809883320,13.07098231,4231.5,4231.4,1e-08]
[1754809883620,15.60796184,4231.5,4231.4,1e-08]
[1754809883808,15.70260184,4231.5,4231.4,1e-08]
[1754809884185,9.55968804,4231.5,4231.4,1e-08]
[1754809884382,10.48978804,4231.5,4231.4,1e-08]
[1754809884990,10.49289182,4231.5,4231.4,1e-08]
[1754809887320,9.56279182,4231.5,4231.4,1e-08]
[1754809888186,10.49289182,4231.5,4231.4,1e-08]
[1754809890102,10.49289182,4231.5,4231.4,0.21851668]
[1754809890303,10.49289182,4231.5,4231.4,1e-08]
[1754809890516,10.48978804,4231.5,4231.4,1e-08]
[1754809891515,10.48978804,4231.5,4231.4,0.21852419]
[1754809891694,10.39514804,4231.5,4231.4,0.21852419]
[1754809892216,10.51312251,4231.5,4231.4,0.21852419]
[1754809894930,6.99964804,4231.5,4231.4,0.21852419]
[1754809895138,4.27862816,4231.5,4231.4,0.21852419]
[1754809896137,1.9154,4231.5,4231.4,0.50132419]
[1754809896644,1.9154,4231.5,4231.4,0.58162419]
[1754809897008,4.27862816,4231.5,4231.4,0.50132419]
[1754809897905,4.27862816,4231.5,4231.4,0.21852419]
[1754809901727,1.9154,4231.5,4231.4,0.21852419]
[1754809902050,1.9154,4231.5,4231.4,0.50132419]
[1754809902235,1.9154,4231.5,4231.4,0.58272394]
[1754809902552,1.9154,4231.5,4231.4,0.87743028]
[1754809902758,1.9154,4231.5,4231.4,0.79713028]
[1754809903115,1.9154,4231.5,4231.4,0.50242394]
[1754809904742,1.9154,4231.5,4231.4,0.21962394]
[1754809904948,1.9154,4231.5,4231.4,0.21938337]
[1754809908559,1.9174,4231.5,4231.4,0.21938337]
[1754809908761,1.9174,4231.5,4231.4,0.50218337]
[1754809909358,1.9174,4231.5,4231.4,0.21938337]
[1754809910869,1.9174,4231.5,4231.4,0.21898819]
[1754809912326,1.9174,4231.5,4231.4,1.02474283]
[1754809912529,1.9174,4231.5,4231.4,3.38802684]
[1754809912855,1.9174,4231.5,4231.4,0.74194283]
[1754809913071,1.9174,4231.5,4231.4,0.21898819]
[1754809921266,1.9174,4231.5,4231.4,2.5822722]
[1754809921465,1.9174,4231.5,4231.4,2.8650722]
[1754809921808,1.9174,4231.5,4231.4,2.86528573]
[1754809921980,1.9174,4231.5,4231.4,2.58248573]
[1754809923654,1.9174,4231.5,4231.4,2.58272747]
[1754809924579,1.9174,4231.5,4231.4,0.21944346]
[1754809924978,1.9174,4231.5,4231.4,2.58272747]
[1754809925714,0.1204,4231.5,4231.4,2.58272747]
[1754809925936,0.002,4231.5,4231.4,2.86552747]
[1754809926213,0.002,4232.0,4231.9,2.36300479]
[1754809926214,0.1204,4232.0,4231.9,2.36300479]
[1754809926415,0.1204,4232.0,4231.9,10.79526204]
[1754809926921,0.1204,4232.0,4231.9,11.07806204]
[1754809927327,0.002,4232.0,4231.9,14.07806204]
[1754809927531,0.002,4232.0,4231.9,14.27676204]
[1754809927731,0.002,4232.0,4231.9,15.95852924]
[1754809928530,0.002,4232.0,4231.9,14.27676204]
[1754809932190,0.002,4232.0,4231.9,14.19646204]
[1754809933105,0.002,4232.0,4231.9,14.76296204]
[1754809933920,0.002,4232.0,4231.9,6.26734824]
[1754809934133,0.002,4232.0,4231.9,5.70084824]
[1754809940886,0.002,4232.0,4231.9,5.98364824]
[1754809941265,0.002,4232.0,4231.9,6.10404824]
[1754809941475,0.002,4232.0,4231.9,5.82124824]
[1754809941952,0.002,4232.0,4231.9,7.61724824]
[1754809943488,0.002,4232.0,4231.9,7.90004824]
[1754809943845,0.002,4232.0,4231.9,7.61724824]
[1754809948889,0.9366,4232.3,4232.2,2.36283729]
[1754809949073,0.9366,4232.3,4232.2,13.91349454]
[1754809950998,0.4725,4232.3,4232.2,13.91349454]
[1754809951297,0.002,4232.4,4232.3,5.36278146]
[1754809951599,0.002,4232.4,4232.3,5.58222491]
[1754809952304,0.9386,4232.4,4232.3,5.58222491]
[1754809954398,0.9386,4232.4,4232.3,5.58199021]
[1754809955180,0.002,4232.4,4232.3,2.58199021]
[1754809955588,0.002,4232.4,4232.3,5.70039021]
[1754809957278,0.002,4232.4,4232.3,7.38215741]
[1754809957486,0.002,4232.5,4232.4,2.36272564]
[1754809957683,0.002,4232.5,4232.4,4.37693439]
[1754809958304,0.002,4232.5,4232.4,4.47148739]
[1754809958980,0.002,4233.3,4232.7,2.36255817]
[1754809959226,0.002,4233.3,4232.8,3.21920875]
[1754809959402,0.002,4233.3,4233.0,2.36237695]
[1754809959608,0.002,4233.3,4233.1,0.21920875]
[1754809959797,0.1204,4233.3,4233.1,2.58154368]
[1754809960197,0.4745,4233.2,4233.1,0.21920875]
[1754809960634,0.4745,4233.2,4233.1,2.58154368]
[1754809961481,0.002,4233.2,4233.1,2.58154368]
[1754809961685,0.002,4233.2,4233.1,5.58154368]
[1754809961907,0.002,4233.2,4233.1,7.37654368]
[1754809962495,0.002,4233.2,4233.1,5.58154368]
[1754809962820,0.002,4233.2,4233.1,7.37654368]
[1754809963005,0.4745,4233.2,4233.1,5.58154368]
[1754809963210,0.9386,4233.2,4233.1,5.58154368]
[1754809969122,0.9211,4233.2,4233.1,5.58154368]
[1754809971508,0.9211,4233.2,4233.1,5.58148768]
[1754809971708,0.9211,4233.2,4233.1,3.21915275]
[1754809972133,0.9211,4233.2,4233.1,5.58148768]
[1754809972839,0.9211,4233.2,4233.1,0.21915275]
[1754809973201,1.24982179,4233.2,4233.1,0.21915275]
[1754809974885,3.61210091,4233.2,4233.1,0.21915275]
[1754809977951,4.19162939,4233.2,4233.1,0.21915275]
[1754809978283,2.36266981,4232.5,4232.4,0.001]
[1754809978446,4.73720318,4232.5,4232.4,0.001]
[1754809978772,5.68310318,4232.5,4232.4,0.001]
[1754809978978,7.37402812,4232.5,4232.4,0.001]
[1754809979770,7.27942112,4232.5,4232.4,0.001]
[1754809979950,7.37402912,4232.5,4232.4,0.001]
[1754809982994,7.39782112,4232.5,4232.4,0.001]
[1754809983796,2.91317232,4231.6,4231.5,0.001]
[1754809983965,2.91328401,4231.4,4231.3,0.001]
[1754809984295,2.94282506,4231.4,4231.3,0.001]
[1754809984502,4.00712506,4231.4,4231.3,0.001]
[1754809984656,4.82366038,4231.4,4231.3,0.001]
[1754809988863,3.17981933,4231.4,4231.3,0.001]
[1754809989059,6.06866038,4231.4,4231.3,0.001]
[1754809989254,6.58911933,4231.4,4231.3,0.001]
[1754809998017,6.7073751,4231.4,4231.3,0.001]
[1754809999431,6.12901933,4231.4,4231.3,0.21948025]
[1754809999588,4.23343532,4231.4,4231.3,0.001]
[1754809999789,6.62626038,4231.4,4231.3,0.001]
[1754809999991,6.59671933,4231.4,4231.3,0.001]
[1754810000187,6.59671933,4231.4,4231.3,0.21959782]
[1754810001293,2.36328401,4231.4,4231.3,0.21959782]
[1754810001526,2.36328401,4231.4,4231.3,0.67589782]
[1754810001527,4.15928401,4231.4,4231.3,0.67589782]
[1754810001707,2.835,4232.5,4231.3,0.67589782]
[1754810002031,1.796,4232.4,4231.4,0.67489782]
[1754810002240,2.36317232,4231.6,4231.5,0.21859782]
[1754810002404,5.11267232,4231.6,4231.5,0.21859782]
[1754810005010,5.66267232,4231.6,4231.5,0.21859782]
[1754810007840,5.78216871,4231.6,4231.5,0.21859782]
[1754810008043,4.70917232,4231.6,4231.5,0.21859782]
[1754810008345,5.14221197,4231.6,4231.5,0.21859782]
[1754810008543,2.36322816,4231.5,4231.3,0.001]
[1754810008846,2.36322816,4231.5,4231.4,0.21973623]
[1754810009151,4.15922816,4231.5,4231.4,0.21973623]
[1754810010026,2.36322816,4231.5,4231.4,0.21973623]
[1754810010339,2.36322816,4231.5,4231.4,0.67603623]
[1754810010340,4.15922816,4231.5,4231.4,0.67603623]
[1754810010500,0.11873678,4232.4,4231.4,0.67603623]
[1754810010704,1.796,4232.3,4231.5,0.67603623]
[1754810010938,1.796,4232.2,4231.6,0.21973623]
[1754810011106,2.36306063,4231.8,4231.7,0.21973623]
[1754810011312,4.15906063,4231.8,4231.7,0.21973623]
[1754810011512,4.27746063,4231.8,4231.7,0.21973623]
[1754810018611,0.002,4232.3,4231.7,0.67603623]
[1754810018816,4.1588768,4232.2,4231.8,0.67603623]
[1754810019115,4.1588768,4232.2,4231.9,0.67603623]
[1754810019313,1.796,4232.2,4232.0,0.67603623]
[1754810019546,1.796,4232.2,4232.1,0.21973623]
[1754810019844,1.796,4232.2,4232.1,0.67603623]
[1754810020015,1.9144,4232.2,4232.1,0.67603623]
[1754810020214,1.9144,4232.2,4232.1,0.4563]
[1754810020427,1.9144,4232.2,4232.1,0.67577261]
[1754810022430,1.9144,4232.2,4232.1,3.11996573]
[1754810022749,1.9144,4232.2,4232.1,3.69801379]
[1754810023551,1.9144,4232.2,4232.1,3.69771131]
[1754810023844,1.9144,4232.2,4232.1,1.25351819]
[1754810026316,1.9144,4232.2,4232.1,1.25338515]
[1754810026521,1.9144,4232.2,4232.1,0.79708515]
[1754810027036,1.9144,4232.2,4232.1,0.21903709]
[1754810029262,5.21113729,4232.2,4232.1,0.21903709]
[1754810030138,2.8483,4232.2,4232.1,0.21903709]
[1754810030534,2.4022,4232.2,4232.1,0.21903709]
[1754810030740,5.21113729,4232.2,4232.1,0.21903709]
[1754810031669,4.76503729,4232.2,4232.1,0.21903709]
[1754810031976,5.21113729,4232.2,4232.1,0.21903709]
[1754810032181,6.25242366,4232.2,4232.1,0.21903709]
[1754810035379,3.88958637,4232.2,4232.1,0.21925255]
[1754810035575,6.25242366,4232.2,4232.1,0.21925255]
[1754810039249,5.80832366,4232.2,4232.1,0.21925255]
[1754810039453,5.32052366,4232.2,4232.1,0.21925255]
[1754810039950,5.80832366,4232.2,4232.1,0.21925255]
[1754810040176,6.25442366,4232.2,4232.1,0.21925255]
[1754810040384,5.80832366,4232.2,4232.1,0.21925255]
[1754810040545,4.27923729,4232.2,4232.1,0.21925255]
[1754810041183,4.76703729,4232.2,4232.1,0.21925255]
[1754810041880,5.21313729,4232.2,4232.1,0.21925255]
[1754810044154,2.3631055,4231.8,4231.3,0.001]
[1754810044477,4.15811659,4231.7,4231.4,0.21964627]
[1754810044775,4.15811659,4231.7,4231.5,0.21964627]
[1754810044999,4.15811659,4231.7,4231.6,0.21964627]
[1754810045853,4.27651659,4231.7,4231.6,0.21964627]
[1754810046184,4.30605554,4231.7,4231.6,0.21964627]
[1754810046357,5.21041659,4231.7,4231.6,0.21964627]
[1754810048494,4.76431659,4231.7,4231.6,0.21964627]
[1754810048664,1.9134,4231.7,4231.6,0.21964627]
[1754810049286,1.9134,4231.7,4231.6,0.68804627]
[1754810049606,4.27651647,4231.7,4231.6,0.21964627]
[1754810050103,4.76431647,4231.7,4231.6,0.21964627]
[1754810050293,5.21041647,4231.7,4231.6,0.21964627]
[1754810050477,4.76431647,4231.7,4231.6,0.21964627]
[1754810050874,4.27651647,4231.7,4231.6,0.21964627]
[1754810051075,5.21041647,4231.7,4231.6,0.21964627]
[1754810051900,4.76431647,4231.7,4231.6,0.21964627]
[1754810052104,4.76431647,4231.7,4231.6,0.21974502]
[1754810052809,4.27651647,4231.7,4231.6,0.21974502]
[1754810057277,4.76261647,4231.7,4231.6,0.21974502]
[1754810057776,5.20491647,4231.7,4231.6,0.21974502]